bitfinex/quotes_SOLUSD_20241113
["timestamp","ask_amount","ask_price","bid_price","bid_amount"]
[1731496495957,4.7934,208.62,208.59,0.1]
[1731496496153,21.95914844,208.6,208.57,0.1]
[1731496496743,26.75254844,208.62,208.59,0.1]
[1731496496946,26.75254844,208.62,208.59,0.2]
[1731496498761,4.7934,208.62,208.57,0.1]
[1731496498954,21.95914844,208.58,208.57,0.1]
[1731496499153,21.95914844,208.6,208.57,0.1]
[1731496499457,21.95914844,208.6,208.59,0.1]
[1731496499953,26.75254844,208.62,208.59,0.1]
[1731496500558,26.75254844,208.62,208.57,0.1]
[1731496500559,21.95914844,208.6,208.57,0.1]
[1731496500758,13.7715122,208.61,208.57,0.1]
[1731496500936,13.7715122,208.65,208.62,0.1]
[1731496501142,13.7715122,208.63,208.57,0.1]
[1731496501346,13.7715122,208.7,208.57,0.1]
[1731496501347,13.7715122,208.59,208.57,0.1]
[1731496501943,13.7715122,208.59,208.53,0.1]
[1731496502153,13.7715122,208.57,208.55,0.1]
[1731496502365,13.7715122,208.59,208.58,0.1]
[1731496502561,13.7715122,208.59,208.57,0.1]
[1731496502858,4.794,208.6,208.57,0.1]
[1731496502859,26.83069079,208.6,208.57,0.1]
[1731496503165,22.03669079,208.62,208.59,0.1]
[1731496503866,22.03669079,208.62,208.58,0.1]
[1731496504571,22.03669079,208.6,208.57,0.1]
[1731496505057,22.03669079,208.6,208.59,0.1]
[1731496505264,22.03669079,208.62,208.6,0.1]
[1731496505645,22.03669079,208.66,208.65,0.1]
[1731496507244,22.03669079,208.68,208.67,0.1]
[1731496507455,22.03669079,208.74,208.71,0.1]
[1731496507661,22.03669079,208.74,208.73,0.1]
[1731496507862,22.03669079,208.76,208.73,0.1]
[1731496508251,0.12549,208.75,208.73,0.1]
[1731496508445,22.03669079,208.74,208.71,0.1]
[1731496508858,0.12549,208.73,208.7,0.1]
[1731496509053,22.03669079,208.74,208.71,0.1]
[1731496509054,22.03669079,208.72,208.71,0.1]
[1731496509251,22.03669079,208.76,208.73,0.1]
[1731496509461,22.03669079,208.8,208.77,0.1]
[1731496509767,22.03669079,208.82,208.79,0.1]
[1731496509963,4.7885,208.84,208.78,0.1]
[1731496509964,22.03669079,208.8,208.78,0.1]
[1731496510152,22.03669079,208.8,208.74,0.1]
[1731496510468,4.7885,208.84,208.76,0.1]
[1731496510675,22.03669079,208.77,208.74,0.1]
[1731496511150,22.16218079,208.77,208.76,0.1]
[1731496511353,22.03669079,208.79,208.76,0.1]
[1731496511561,4.7864,208.93,208.8,0.1]
[1731496511764,16.744,209.03,208.88,0.1]
[1731496511979,40.664,209.03,208.92,0.1]
[1731496512150,22.03669079,208.96,208.92,0.1]
[1731496512351,22.03669079,208.96,208.92,0.2]
[1731496512646,22.03669079,208.96,208.92,0.1]
[1731496513167,0.12549,208.95,208.91,0.1]
[1731496513352,22.03669079,208.92,208.89,0.2]
[1731496513552,22.16218079,208.9,208.89,0.2]
[1731496513764,0.12549,208.9,208.89,0.2]
[1731496514267,0.12549,208.89,208.87,0.1]
[1731496514471,0.12549,208.89,208.88,0.1]
[1731496515480,0.12549,208.89,208.84,0.1]
[1731496515660,0.12549,208.87,208.84,0.1]
[1731496515981,0.12549,208.85,208.83,0.1]
[1731496516163,22.16218079,208.84,208.83,0.2]
[1731496516360,0.12549,208.83,208.81,0.2]
[1731496516556,22.03669079,208.82,208.79,0.931]
[1731496516851,16.7553,208.89,208.79,0.831]
[1731496517051,23.9243,209.0,208.79,0.831]
[1731496517052,22.03669079,208.85,208.82,0.2]
[1731496517260,22.03669079,208.89,208.86,0.1]
[1731496517465,4.7857,208.96,208.91,0.1]
[1731496517652,22.03669079,208.95,208.91,0.1]
[1731496518060,0.12549,208.94,208.91,0.1]
[1731496518278,22.03669079,208.95,208.91,0.2]
[1731496518980,4.786,208.94,208.91,0.1]
[1731496519366,22.03669079,208.95,208.93,0.1]
[1731496519958,22.03669079,208.97,208.94,0.1]
[1731496520274,22.03669079,208.97,208.88,7.1811]
[1731496520275,22.03669079,208.97,208.96,0.1]
[1731496520477,22.03669079,208.99,208.96,0.1]
[1731496521460,4.7847,209.0,208.98,0.1]
[1731496522271,26.82119079,209.01,208.98,0.1]
[1731496522480,0.12549,208.98,208.94,0.1]
[1731496522680,4.7845,209.01,208.95,0.1]
[1731496522962,22.03669079,208.99,208.95,0.1]
[1731496523173,0.12549,208.98,208.96,0.1]
[1731496523386,0.12549,208.98,208.97,0.1]
[1731496524265,0.12549,208.98,208.94,0.1]
[1731496524460,22.16218079,208.95,208.94,0.1]
[1731496524972,0.12549,208.95,208.94,0.1]
[1731496525170,0.12549,208.95,208.94,0.2]
[1731496525371,22.03669079,208.97,208.94,0.2]
[1731496525589,26.82169079,208.99,208.97,0.1]
[1731496525964,22.03669079,209.01,208.98,0.1]
[1731496526168,22.03669079,209.03,209.0,0.2]
[1731496526465,22.03669079,209.01,208.98,0.2]
[1731496526665,22.03669079,209.01,209.0,0.1]
[1731496526888,22.03669079,209.03,209.02,0.1]
[1731496529091,26.82039079,209.05,209.02,0.2]
[1731496529579,22.03669079,209.03,209.02,0.2]
[1731496529779,22.03669079,209.03,209.02,0.1]
[1731496530088,22.03669079,209.03,209.0,0.1]
[1731496530089,0.12549,209.02,209.0,0.2]
[1731496530270,0.12549,209.02,209.0,0.1]
[1731496530471,22.16218079,209.01,209.0,0.1]
[1731496530796,22.03669079,209.01,209.0,0.2]
[1731496531171,22.03669079,209.03,209.0,0.1]
[1731496531588,21.80018371,209.07,209.0,0.1]
[1731496531589,21.80018371,209.07,209.06,35.8738]
[1731496532088,21.80018371,209.07,209.06,38.7437]
[1731496532295,22.03669079,209.26,209.21,0.1]
[1731496532483,22.03669079,209.22,209.17,0.2]
[1731496532788,22.03669079,209.19,209.15,0.2]
[1731496532992,0.12549,209.18,209.15,0.2]
[1731496533191,4.7782,209.28,209.22,0.2]
[1731496533372,22.03669079,209.27,209.23,0.1]
[1731496533576,22.03669079,209.25,209.23,0.1]
[1731496533801,22.03669079,209.25,209.22,0.1]
[1731496534287,0.4769093,209.3,209.24,0.2]
[1731496534288,22.03669079,209.27,209.24,0.2]
[1731496535067,22.03669079,209.25,209.2,0.1]
[1731496535271,0.12549,209.22,209.19,0.1]
[1731496535493,0.12549,209.22,209.17,0.2]
[1731496535674,0.12549,209.2,209.17,0.1]
[1731496536001,22.03669079,209.19,209.16,0.1]
[1731496536174,0.12549,209.18,209.15,0.1]
[1731496536376,4.90599,209.18,209.15,0.1]
[1731496536578,0.12549,209.16,209.15,0.1]
[1731496537705,11.9451,209.29,209.17,0.1]
[1731496537706,22.03669079,209.19,209.17,0.1]
[1731496537993,22.03669079,209.2,209.17,0.2]
[1731496538490,22.03669079,209.26,209.21,0.1]
[1731496538897,22.03669079,209.24,209.21,0.1]
[1731496539599,22.03669079,209.24,209.23,0.1]
[1731496540094,26.81599079,209.24,209.21,0.2]
[1731496540392,26.81599079,209.24,209.21,0.1]
[1731496540393,22.16218079,209.22,209.21,0.1]
[1731496540773,0.12549,209.22,209.21,0.2]
[1731496540992,0.12549,209.22,209.21,0.1]
[1731496541292,22.03669079,209.28,209.26,0.1]
[1731496541481,22.03669079,209.27,209.26,0.1]
[1731496541692,0.12549,209.26,209.25,0.1]
[1731496541894,22.03669079,209.27,209.25,0.2]
[1731496542088,22.03669079,209.27,209.25,0.1]
[1731496542279,0.12549,209.26,209.16,0.1]
[1731496542473,4.7786,209.27,209.19,0.1]
[1731496542681,0.12549,209.25,209.15,0.1]
[1731496542904,0.12549,209.25,209.18,0.1]
[1731496543082,0.12549,209.25,209.16,0.2]
[1731496543476,0.12549,209.25,209.16,0.1]
[1731496543695,22.16218079,209.17,209.16,0.1]
[1731496543895,22.03669079,209.17,209.16,0.1]
[1731496544077,22.03669079,209.17,209.16,0.2]
[1731496544276,22.03669079,209.19,209.16,0.2]
[1731496544478,23.8864,209.33,209.18,0.2]
[1731496544680,22.03669079,209.21,209.2,0.1]
[1731496544883,22.03669079,209.21,209.2,0.2]
[1731496545904,22.16218079,209.23,209.22,0.2]
[1731496546083,0.12549,209.22,209.21,0.1]
[1731496547086,22.03669079,209.23,209.2,0.1]
[1731496547087,22.03669079,209.25,209.24,0.1]
[1731496547294,22.03669079,209.29,209.26,0.2]
[1731496547580,22.16218079,209.27,209.23,0.2]
[1731496547790,22.03669079,209.25,209.23,0.2]
[1731496548102,0.12549,209.27,209.25,0.1]
[1731496548306,22.16218079,209.27,209.26,0.1]
[1731496548987,22.03669079,209.27,209.26,0.1]
[1731496549188,22.03669079,209.27,209.25,0.1]
[1731496549383,0.12549,209.26,209.24,0.1]
[1731496549584,22.03669079,209.27,209.26,0.1]
[1731496549982,22.16218079,209.27,209.26,0.1]
[1731496550485,0.12549,209.26,209.23,0.2]
[1731496550687,0.12549,209.23,209.21,0.1]
[1731496551008,22.03669079,209.22,209.21,0.2]
[1731496552596,22.16218079,209.22,209.21,0.1]
[1731496553881,0.12549,209.21,209.18,0.2]
[1731496554102,22.16218079,209.19,209.18,0.2]
[1731496554385,22.03669079,209.21,209.2,0.1]
[1731496554691,22.16218079,209.21,209.2,0.1]
[1731496555092,22.16218079,209.21,209.2,0.2]
[1731496555294,22.16218079,209.21,209.2,0.1]
[1731496555998,22.16218079,209.21,209.2,0.2]
[1731496556505,22.16218079,209.21,209.2,0.1]
[1731496557005,22.03669079,209.21,209.2,0.1]
[1731496557223,22.16218079,209.21,209.2,0.2]
[1731496557602,0.12549,209.2,209.18,0.1]
[1731496557809,22.03669079,209.19,209.18,0.2]
[1731496557996,22.16218079,209.19,209.18,0.2]
[1731496558705,0.12549,209.19,209.18,0.2]
[1731496558889,22.16218079,209.19,209.18,0.1]
[1731496559210,22.16218079,209.19,209.18,0.2]
[1731496559711,22.16218079,209.19,209.18,0.1]
[1731496559890,4.90599,209.18,209.17,0.1]
[1731496560091,0.12549,209.18,209.17,0.1]
[1731496560714,4.90609,209.18,209.12,0.1]
[1731496560893,22.16218079,209.13,209.12,0.2]
[1731496562212,11.9465,209.27,209.18,0.1]
[1731496562421,22.03669079,209.19,209.18,0.1]
[1731496562712,22.16218079,209.19,209.16,0.1]
[1731496563019,0.12549,209.16,209.14,0.1]
[1731496563219,22.16218079,209.15,209.14,0.1]
[1731496564132,22.16218079,209.15,209.09,2.8695]
[1731496564133,0.12549,209.14,209.1,0.1]
[1731496564414,22.16218079,209.11,209.1,0.1]
[1731496564612,0.12549,209.1,209.08,0.1]
[1731496564824,22.03669079,209.09,209.08,0.1]
[1731496564994,0.12549,209.08,209.06,0.1]
[1731496565194,0.12549,209.06,209.04,0.1]
[1731496565412,0.12549,209.04,209.03,0.1]
[1731496567022,4.90929,209.04,209.02,0.1]
[1731496567200,22.16218079,209.03,209.02,0.1]
[1731496567715,43.776884,209.11,209.06,0.1]
[1731496567912,22.03669079,209.07,209.06,0.1]
[1731496568101,0.12549,209.06,209.05,0.1]
[1731496568415,22.16218079,209.06,209.05,0.1]
[1731496568596,105.09080318,209.2,209.1,0.1]
[1731496568794,4.7803,209.19,209.11,0.1]
[1731496568994,4.7803,209.19,209.09,0.1]
[1731496568995,22.03669079,209.12,209.09,0.1]
[1731496569214,22.03669079,209.12,209.11,0.2]
[1731496569714,22.16218079,209.12,209.11,0.2]
[1731496569914,22.16218079,209.12,209.11,0.1]
[1731496570132,0.12549,209.11,209.09,0.1]
[1731496570296,22.16218079,209.1,209.09,0.1]
[1731496572312,0.12549,209.09,209.08,0.1]
[1731496573099,23.902374,209.09,209.03,0.2]
[1731496573301,22.16218079,209.04,209.03,0.1]
[1731496573604,0.12549,209.03,209.01,0.2]
[1731496573817,22.16218079,209.02,209.01,0.2]
[1731496574813,22.16218079,209.02,209.01,0.1]
[1731496575023,22.16218079,209.02,209.01,0.2]
[1731496575204,22.03669079,209.04,209.03,0.2]
[1731496575615,22.16218079,209.04,209.03,0.2]
[1731496576619,22.16218079,209.04,209.03,0.1]
[1731496576914,22.16218079,209.04,209.01,0.1]
[1731496576915,0.12549,209.03,209.01,0.1]
[1731496577117,0.12549,209.03,208.99,0.1]
[1731496577118,0.12549,209.01,208.99,0.1]
[1731496577331,0.12549,208.99,208.97,0.1]
[1731496577619,44.07338158,209.0,208.9,12.3052]
[1731496577620,23.902374,208.97,208.91,0.1]
[1731496577829,0.12549,208.91,208.88,0.1]
[1731496578132,22.03669079,208.89,208.88,0.1]
[1731496578300,4.7837,209.04,209.01,0.1]
[1731496578503,22.03669079,209.02,209.01,0.1]
[1731496579118,22.16218079,209.02,209.01,0.1]
[1731496579309,22.03669079,209.02,209.01,0.1]
[1731496580426,22.16218079,209.02,209.01,0.1]
[1731496582121,22.03669079,209.02,209.01,0.1]
[1731496582323,22.03669079,209.04,209.03,0.1]
[1731496582631,22.03669079,209.04,209.03,0.2]
[1731496582804,22.03669079,209.04,209.01,0.2]
[1731496583124,22.16218079,209.02,209.01,0.1]
[1731496584122,0.12549,209.01,208.99,0.1]
[1731496584421,45.81357479,209.0,208.95,0.2]
[1731496584599,22.16218079,208.96,208.95,0.2]
[1731496585801,22.16218079,208.96,208.95,0.1]
[1731496586204,22.16218079,208.96,208.95,0.2]
[1731496586610,23.776884,209.0,208.99,0.2]
[1731496586611,22.03669079,209.0,208.99,0.2]
[1731496587608,22.16218079,209.0,208.99,0.2]
[1731496588838,0.12549,208.99,208.97,0.1]
[1731496589133,0.12549,208.97,208.96,0.1]
[1731496591837,4.7826,209.09,209.03,0.1]
[1731496592050,22.03669079,209.04,209.03,0.1]
[1731496592710,22.16218079,209.04,209.03,0.1]
[1731496592916,22.03669079,209.04,209.03,0.1]
[1731496593415,22.16218079,209.04,209.03,0.1]
[1731496593827,26.94588079,209.04,209.03,0.1]
[1731496594526,23.902374,209.03,208.99,0.1]
[1731496594729,44.19887158,209.0,208.99,0.1]
[1731496594917,0.12549,208.99,208.97,0.1]
[1731496595224,23.902374,208.97,208.91,0.2]
[1731496595411,22.16218079,208.92,208.91,0.1]
[1731496597714,0.12549,208.91,208.89,0.1]
[1731496597934,22.16218079,208.9,208.89,0.1]
[1731496599839,44.19887158,208.9,208.89,0.1]
[1731496600340,0.12549,208.89,208.87,0.1]
[1731496600544,22.16218079,208.88,208.87,0.1]
[1731496600838,0.12549,208.87,208.85,0.1]
[1731496601040,22.16218079,208.86,208.85,0.1]
[1731496601214,22.16218079,208.86,208.82,0.1]
[1731496601215,0.12549,208.85,208.82,0.1]
[1731496601419,0.12549,208.85,208.84,0.1]
[1731496601638,0.12549,208.84,208.82,0.1]
[1731496601844,4.91399,208.83,208.82,0.1]
[1731496602030,26.95068079,208.83,208.82,0.1]
[1731496602242,0.12549,208.82,208.79,0.1]
[1731496602433,0.12549,208.79,208.78,0.1]
[1731496603456,22.03669079,208.84,208.82,0.1]
[1731496603737,4.7872,208.89,208.82,0.1]
[1731496603738,22.03669079,208.86,208.85,0.2]
[1731496604919,22.16218079,208.86,208.85,0.1]
[1731496605121,4.91359,208.85,208.83,0.1]
[1731496605334,22.16218079,208.84,208.83,0.1]
[1731496605639,0.12549,208.83,208.81,0.1]
[1731496605841,22.16218079,208.82,208.81,0.1]
[1731496606937,4.7887,208.83,208.81,0.1]
[1731496607139,24.7872,208.89,208.85,0.1]
[1731496607440,22.16218079,208.86,208.85,0.1]
[1731496608945,0.12549,208.86,208.85,0.1]
[1731496609348,22.16218079,208.86,208.85,0.1]
[1731496609849,4.91359,208.85,208.81,0.1]
[1731496610141,22.16218079,208.82,208.81,0.1]
[1731496610321,22.16218079,208.82,208.78,0.1]
[1731496610322,0.12549,208.81,208.79,0.1]
[1731496610518,22.16218079,208.8,208.79,0.1]
[1731496610720,0.12549,208.79,208.78,0.1]
[1731496610919,0.12549,208.79,208.77,0.1]
[1731496610920,0.12549,208.79,208.75,0.2]
[1731496611138,0.12549,208.75,208.73,0.2]
[1731496611342,0.12549,208.73,208.71,0.2]
[1731496611555,22.16218079,208.72,208.71,0.1]
[1731496611726,0.12549,208.71,208.69,0.2]
[1731496611924,22.03669079,208.7,208.69,0.2]
[1731496612273,22.03669079,208.7,208.69,0.1]
[1731496612427,22.03669079,208.7,208.67,0.2]
[1731496612631,22.03669079,208.68,208.67,0.2]
[1731496612837,4.91699,208.71,208.67,0.2]
[1731496613046,4.91699,208.71,208.68,0.1]
[1731496613345,67.85026558,208.7,208.69,0.1]
[1731496614056,4.7917,208.69,208.64,0.1]
[1731496614343,22.03669079,208.65,208.64,0.2]
[1731496616025,22.03669079,208.65,208.64,0.1]
[1731496617857,22.03669079,208.65,208.64,0.1]
[1731496618354,22.03669079,208.67,208.66,0.2]
[1731496618535,21.94155919,208.69,208.68,0.1]
[1731496618735,70.0,208.86,208.68,0.1]
[1731496618736,4.7901,208.77,208.72,0.1]
[1731496619042,22.03669079,208.73,208.72,0.1]
[1731496620132,22.03669079,208.73,208.72,0.2]
[1731496620763,13.0514,208.85,208.79,0.1]
[1731496620944,22.03669079,208.8,208.79,0.1]
[1731496621655,31.1165,208.86,208.85,0.1]
[1731496621656,22.03669079,208.86,208.85,0.1]
[1731496623849,22.16218079,208.86,208.85,0.1]
[1731496624564,22.03669079,208.89,208.88,0.1]
[1731496624851,22.03669079,208.91,208.9,0.1]
[1731496625055,22.03669079,208.91,208.76,0.1]
[1731496625056,22.03669079,208.91,208.88,0.1]
[1731496625230,22.03669079,208.89,208.88,0.1]
[1731496625435,22.16218079,208.89,208.88,0.1]
[1731496625639,0.12549,208.88,208.86,0.1]
[1731496625848,0.12549,208.86,208.84,0.1]
[1731496626155,0.12549,208.84,208.82,0.1]
[1731496626452,22.16218079,208.83,208.82,0.1]
[1731496626761,0.12549,208.82,208.8,0.1]
[1731496627057,22.16218079,208.81,208.8,0.1]
[1731496627355,22.03669079,208.87,208.84,0.2]
[1731496627563,22.03669079,208.89,208.86,0.2]
[1731496627732,22.03669079,208.89,208.88,0.1]
[1731496628537,22.16218079,208.89,208.88,0.1]
[1731496628944,4.91289,208.88,208.86,0.1]
[1731496629147,22.16218079,208.87,208.86,0.1]
[1731496630036,0.12549,208.87,208.86,0.1]
[1731496630360,22.03669079,208.89,208.88,0.1]
[1731496631040,22.16218079,208.89,208.88,0.1]
[1731496631663,22.03669079,208.93,208.92,0.1]
[1731496631953,22.03669079,208.95,208.94,0.2]
[1731496632155,22.03669079,208.97,208.94,0.2]
[1731496632340,4.7851,208.99,208.94,0.2]
[1731496632341,4.7851,208.99,208.96,0.1]
[1731496632939,22.03669079,208.97,208.96,0.1]
[1731496633134,26.82199079,208.97,208.96,0.1]
[1731496633543,23.902374,208.96,208.89,0.2]
[1731496633735,22.16218079,208.9,208.89,0.1]
[1731496634159,0.12549,208.89,208.87,0.1]
[1731496634338,0.12549,208.87,208.84,0.1]
[1731496634543,22.16218079,208.85,208.84,0.1]
[1731496634791,0.12549,208.84,208.81,0.1]
[1731496635057,22.16218079,208.82,208.81,0.2]
[1731496635263,22.03669079,208.86,208.85,0.1]
[1731496635438,22.03669079,208.9,208.89,0.1]
[1731496635633,26.82319079,208.92,208.91,0.1]
[1731496635841,26.82319079,208.92,208.89,0.1]
[1731496636044,22.03669079,208.9,208.89,0.1]
[1731496636243,22.16218079,208.9,208.89,0.1]
[1731496636461,0.12549,208.89,208.87,0.1]
[1731496636656,0.12549,208.87,208.85,0.1]
[1731496636861,22.16218079,208.86,208.85,0.1]
[1731496637062,26.94998079,208.86,208.85,0.1]
[1731496637247,0.12549,208.85,208.83,0.2]
[1731496637437,0.12549,208.83,208.81,0.2]
[1731496637638,22.16218079,208.82,208.81,0.2]
[1731496638238,22.03669079,208.82,208.81,0.2]
[1731496639362,22.16218079,208.82,208.81,0.2]
[1731496640265,22.03669079,208.88,208.87,0.2]
[1731496640473,22.03669079,208.9,208.89,0.1]
[1731496640678,22.03669079,208.9,208.89,0.2]
[1731496641149,22.16218079,208.9,208.89,0.1]
[1731496641350,26.82359079,208.9,208.89,0.1]
[1731496641554,0.12549,208.89,208.87,0.1]
[1731496641853,22.16218079,208.88,208.87,0.2]
[1731496642046,0.12549,208.88,208.87,0.2]
[1731496642459,22.03669079,208.92,208.91,0.1]
[1731496643245,0.12549,208.91,208.89,0.1]
[1731496643474,26.94908079,208.9,208.89,0.1]
[1731496643959,0.12549,208.89,208.87,0.1]
[1731496644160,0.12549,208.87,208.83,0.1]
[1731496644364,22.16218079,208.84,208.83,0.2]
[1731496645168,22.03669079,208.88,208.85,0.2]
[1731496645346,22.03669079,208.88,208.87,0.2]
[1731496645879,26.94958079,208.88,208.87,0.1]
[1731496646167,0.12549,208.87,208.84,0.1]
[1731496646486,0.12549,208.87,208.82,0.1]
[1731496646651,0.12549,208.87,208.76,33.5973]
[1731496646652,0.12549,208.87,208.85,0.1]
[1731496647347,0.12549,208.87,208.86,0.1]
[1731496647569,117.05230318,208.97,208.87,0.1]
[1731496647872,11.9645,208.96,208.89,0.1]
[1731496648448,0.12549,208.95,208.89,0.1]
[1731496648668,4.7853,208.97,208.92,0.1]
[1731496648873,22.03669079,208.93,208.92,0.1]
[1731496649047,4.7853,208.97,208.92,0.1]
[1731496649368,0.12549,208.92,208.91,0.1]
[1731496649573,0.12549,208.9,208.87,0.1]
[1731496649750,0.12549,208.9,208.84,0.1]
[1731496649751,0.12549,208.87,208.85,0.1]
[1731496650064,22.16218079,208.86,208.85,0.1]
[1731496651355,0.12549,208.86,208.85,0.1]
[1731496652572,26.94998079,208.86,208.85,0.1]
[1731496653654,22.16218079,208.86,208.85,0.1]
[1731496653846,0.12549,208.86,208.85,0.1]
[1731496656554,26.94998079,208.86,208.85,0.1]
[1731496657574,22.16218079,208.86,208.85,0.1]
[1731496660065,93.12450318,208.97,208.76,30.8233]
[1731496660066,34.13166348,209.0,208.91,0.1]
[1731496660372,22.03669079,208.97,208.95,0.1]
[1731496660875,22.03669079,208.97,208.91,0.1]
[1731496661080,22.03669079,208.93,208.91,0.1]
[1731496661256,4.7846,209.0,208.95,0.1]
[1731496661463,22.03669079,208.96,208.95,0.1]
[1731496661863,22.03669079,208.96,208.93,0.1]
[1731496662180,22.03669079,208.94,208.93,0.1]
[1731496662558,22.03669079,208.94,208.93,0.2]
[1731496662772,22.16218079,208.94,208.93,0.1]
[1731496663078,26.94818079,208.94,208.93,0.2]
[1731496663974,0.12549,208.93,208.91,0.1]
[1731496664155,0.12549,208.91,208.89,0.2]
[1731496664355,23.902374,208.89,208.84,0.1]
[1731496664661,22.03669079,208.89,208.88,0.1]
[1731496664871,49.5438,208.94,208.9,0.1]
[1731496664872,22.16218079,208.91,208.9,0.1]
[1731496665074,26.94898079,208.91,208.9,0.1]
[1731496666466,26.94888079,208.91,208.9,0.1]
[1731496666671,0.12549,208.91,208.9,0.1]
[1731496666974,4.91219,208.91,208.9,0.1]
[1731496667474,28.689074,208.91,208.9,0.1]
[1731496667962,4.91219,208.91,208.9,0.1]
[1731496669082,22.03669079,208.94,208.93,0.1]
[1731496669270,22.03669079,208.94,208.93,0.2]
[1731496670077,22.16218079,208.94,208.93,0.2]
[1731496670377,23.902374,208.93,208.91,0.1]
[1731496670577,22.16218079,208.92,208.91,0.1]
[1731496670956,0.12549,208.91,208.87,0.2]
[1731496671163,0.12549,208.87,208.85,0.1]
[1731496671362,26.82359079,208.9,208.85,0.1]
[1731496671363,22.16218079,208.86,208.85,0.1]
[1731496673788,26.94998079,208.86,208.85,0.1]
[1731496674086,22.16218079,208.86,208.85,0.2]
[1731496675176,0.12549,208.85,208.81,0.2]
[1731496675374,22.16218079,208.82,208.81,0.2]
[1731496675575,22.16218079,208.82,208.81,0.1]
[1731496675755,0.12549,208.81,208.79,0.2]
[1731496675960,26.82549079,208.82,208.79,0.2]
[1731496675961,22.16218079,208.8,208.79,0.2]
[1731496677780,26.95138079,208.8,208.79,0.2]
[1731496679885,0.12549,208.79,208.77,0.2]
[1731496680085,22.03669079,208.78,208.77,0.2]
[1731496680282,22.16218079,208.78,208.77,0.1]
[1731496680665,0.12549,208.77,208.76,0.1]
[1731496681064,4.788,208.86,208.84,0.1]
[1731496681280,4.786,208.94,208.88,0.1]
[1731496681586,22.03669079,208.89,208.88,0.1]
[1731496681767,22.03669079,208.89,208.88,0.2]
[1731496681964,26.94938079,208.89,208.88,0.1]
[1731496682366,0.12549,208.88,208.84,0.1]
[1731496682674,22.16218079,208.85,208.84,0.1]
[1731496682879,0.12549,208.85,208.84,0.1]
[1731496683189,22.03669079,208.89,208.88,0.2]
[1731496683394,4.7842,209.02,208.96,0.1]
[1731496683567,22.03669079,209.04,209.03,0.1]
[1731496683768,4.7827,209.09,209.05,0.1]
[1731496683990,4.7827,209.09,209.0,0.1]
[1731496683991,4.7827,209.09,209.03,0.1]
[1731496684283,4.7827,209.09,209.0,0.1]
[1731496684484,93.12450318,209.08,208.97,0.1]
[1731496684671,93.12450318,209.08,208.96,0.1]
[1731496684883,93.12450318,209.08,208.99,0.1]
[1731496685068,22.03669079,209.0,208.98,0.1]
[1731496685368,4.7827,209.09,209.03,0.1]
[1731496685369,22.03669079,209.04,209.03,0.1]
[1731496685777,22.03669079,209.04,209.01,0.1]
[1731496685977,44.07338158,209.02,208.96,0.2]
[1731496686179,22.03669079,208.97,208.96,0.1]
[1731496686383,0.12549,208.96,208.93,0.1]
[1731496686588,0.12549,208.94,208.93,0.1]
[1731496686990,23.902374,208.94,208.91,0.1]
[1731496687314,22.03669079,209.0,208.92,0.1]
[1731496687315,65.81357479,208.93,208.92,0.1]
[1731496687583,23.902374,208.92,208.91,0.1]